[Event "*** SCC Grand Prix: Titled Tuesday Blitz"]
[Site "Chess.com"]
[Date "2020.06.02"]
[Round "4"]
[White "MPGM"]
[Black "Pultis"]
[Result "1-0"]
[WhiteElo "2541"]
[BlackElo "2758"]
[TimeControl "180+1"]
[EndTime "10:39:40 PDT"]
[Termination "MPGM won by resignation"]

1. d4 {[%clk 0:03:00.9]} 1... Nf6 {[%clk 0:02:57.8]} 2. c4 {[%clk 0:02:58.8]}
2... g6 {[%clk 0:02:53.2]} 3. Nf3 {[%clk 0:02:57.8]} 3... Bg7 {[%clk 0:02:37.3]}
4. g3 {[%clk 0:02:56.5]} 4... O-O {[%clk 0:02:37.4]} 5. Bg2 {[%clk 0:02:56.4]}
5... d5 {[%clk 0:02:38.1]} 6. cxd5 {[%clk 0:02:55.7]} 6... Nxd5 {[%clk 0:02:39]}
7. O-O {[%clk 0:02:56.2]} 7... Nc6 {[%clk 0:02:35.4]} 8. e4 {[%clk 0:02:55]}
8... Nb6 {[%clk 0:02:35.4]} 9. d5 {[%clk 0:02:54.8]} 9... Na5 {[%clk 0:02:33.7]}
10. Nc3 {[%clk 0:02:44.4]} 10... e6 {[%clk 0:02:27.7]} 11. Bf4 {[%clk
0:02:35.6]} 11... exd5 {[%clk 0:02:25.1]} 12. exd5 {[%clk 0:02:33.2]} 12... Nac4
{[%clk 0:02:20.9]} 13. Qe2 {[%clk 0:02:26.7]} 13... Re8 {[%clk 0:02:18.9]} 14.
Qc2 {[%clk 0:02:13.3]} 14... Bf5 {[%clk 0:01:54.1]} 15. Qb3 {[%clk 0:02:13]}
15... a5 {[%clk 0:01:54.1]} 16. Rae1 {[%clk 0:01:42.5]} 16... a4 {[%clk
0:01:46.9]} 17. Qb5 {[%clk 0:01:42]} 17... Rxe1 {[%clk 0:01:34.2]} 18. Rxe1
{[%clk 0:01:41.5]} 18... a3 {[%clk 0:01:34.4]} 19. Ne5 {[%clk 0:01:26]} 19...
Nxe5 {[%clk 0:01:00.4]} 20. Bxe5 {[%clk 0:01:24.4]} 20... Bxe5 {[%clk
0:00:40.6]} 21. Rxe5 {[%clk 0:01:22.3]} 21... axb2 {[%clk 0:00:41.5]} 22. Re2
{[%clk 0:00:56]} 22... b1=Q+ {[%clk 0:00:16.2]} 23. Nxb1 {[%clk 0:00:55.2]}
23... Qd6 {[%clk 0:00:09.2]} 24. Nc3 {[%clk 0:00:48.4]} 24... Ra3 {[%clk
0:00:09.5]} 25. Qe8+ {[%clk 0:00:44.5]} 25... Kg7 {[%clk 0:00:09.5]} 26. Nb5
{[%clk 0:00:44.1]} 26... Qc5 {[%clk 0:00:03.7]} 27. Nxa3 {[%clk 0:00:43.3]}
27... Qxa3 {[%clk 0:00:04.6]} 28. Qe5+ {[%clk 0:00:43]} 28... Kg8 {[%clk
0:00:04.9]} 29. Qxc7 {[%clk 0:00:38.4]} 29... Nd7 {[%clk 0:00:05.4]} 30. Qxb7
{[%clk 0:00:31.9]} 30... Qc1+ {[%clk 0:00:05.1]} 31. Bf1 {[%clk 0:00:31.8]}
31... Bh3 {[%clk 0:00:04.5]} 32. Re8+ {[%clk 0:00:31.4]} 32... Nf8 {[%clk
0:00:01.3]} 33. Qb5 {[%clk 0:00:26]} 33... Qd1 {[%clk 0:00:01.4]} 34. Qe2 {[%clk
0:00:24.2]} 34... Qa1 {[%clk 0:00:01.1]} 35. Qe1 {[%clk 0:00:23.3]} 35... h5
{[%clk 0:00:01.4]} 1-0

[Event "*** SCC Grand Prix: Titled Tuesday Blitz"]
[Site "Chess.com"]
[Date "2020.06.02"]
[Round "4"]
[White "Oligan22"]
[Black "DonPreuss"]
[Result "1-0"]
[WhiteElo "2424"]
[BlackElo "2227"]
[TimeControl "180+1"]
[EndTime "10:39:40 PDT"]
[Termination "Oligan22 won by resignation"]

1. e4 {[%clk 0:03:00.9]} 1... e5 {[%clk 0:02:59.6]} 2. Nf3 {[%clk 0:03:00.1]}
2... d5 {[%clk 0:02:59.2]} 3. exd5 {[%clk 0:02:57.8]} 3... e4 {[%clk 0:02:59.6]}
4. Qe2 {[%clk 0:02:48.6]} 4... Nf6 {[%clk 0:03:00]} 5. Nc3 {[%clk 0:02:44.8]}
5... Be7 {[%clk 0:02:59.5]} 6. Nd4 {[%clk 0:02:43.3]} 6... Nxd5 {[%clk
0:02:56.1]} 7. Qxe4 {[%clk 0:02:39.8]} 7... Nxc3 {[%clk 0:02:53]} 8. dxc3 {[%clk
0:02:40.7]} 8... O-O {[%clk 0:02:51.1]} 9. Bd3 {[%clk 0:02:39.7]} 9... f5 {[%clk
0:02:44.1]} 10. Qf3 {[%clk 0:02:35.3]} 10... Nc6 {[%clk 0:02:31.7]} 11. Nxc6
{[%clk 0:02:33.1]} 11... bxc6 {[%clk 0:02:32]} 12. Qxc6 {[%clk 0:02:27.5]} 12...
Rb8 {[%clk 0:02:32.2]} 13. O-O {[%clk 0:02:24.3]} 13... Bb7 {[%clk 0:02:31.7]}
14. Qe6+ {[%clk 0:02:19.7]} 14... Kh8 {[%clk 0:02:31.2]} 15. Bf4 {[%clk
0:02:03.6]} 15... Rf6 {[%clk 0:02:25.9]} 16. Qe2 {[%clk 0:01:40.5]} 16... Qd5
{[%clk 0:02:10]} 17. f3 {[%clk 0:01:38.3]} 17... Bc5+ {[%clk 0:02:09]} 18. Kh1
{[%clk 0:01:38.1]} 18... Rbf8 {[%clk 0:01:55.3]} 19. Rae1 {[%clk 0:01:26.9]}
19... Qxa2 {[%clk 0:01:25.5]} 20. Bxc7 {[%clk 0:01:23]} 20... f4 {[%clk
0:01:22]} 21. Qe5 {[%clk 0:01:13.5]} 21... Be3 {[%clk 0:01:12.2]} 22. Bd6 {[%clk
0:01:01]} 22... Rg8 {[%clk 0:01:06.8]} 23. b3 {[%clk 0:00:47.2]} 23... Rd8
{[%clk 0:00:20.1]} 24. Ra1 {[%clk 0:00:42.9]} 24... Qxa1 {[%clk 0:00:18.6]} 25.
Rxa1 {[%clk 0:00:42]} 25... Rfxd6 {[%clk 0:00:18.5]} 26. Qh5 {[%clk 0:00:23.9]}
26... Rh6 {[%clk 0:00:17.7]} 27. Qg5 {[%clk 0:00:23.3]} 27... Rdd6 {[%clk
0:00:12.5]} 28. Ra4 {[%clk 0:00:20.2]} 28... Rxh2+ {[%clk 0:00:03.9]} 29. Kxh2
{[%clk 0:00:19.8]} 29... Rh6+ {[%clk 0:00:04.4]} 30. Qxh6 {[%clk 0:00:20.1]}
30... gxh6 {[%clk 0:00:05.2]} 31. Rc4 {[%clk 0:00:18.5]} 31... Bd5 {[%clk
0:00:03.9]} 32. Rc7 {[%clk 0:00:18.2]} 32... Kg8 {[%clk 0:00:03.6]} 33. Rxh7
{[%clk 0:00:17.7]} 33... Bd2 {[%clk 0:00:02.1]} 34. Rxh6 {[%clk 0:00:17.1]}
34... Bf7 {[%clk 0:00:02.8]} 35. Rc6 {[%clk 0:00:16.6]} 35... Bxc3 {[%clk
0:00:03.7]} 36. Rxc3 {[%clk 0:00:16.5]} 1-0

[Event "*** SCC Grand Prix: Titled Tuesday Blitz"]
[Site "Chess.com"]
[Date "2020.06.02"]
[Round "4"]
[White "EvgenyRomanov"]
[Black "yamalchess"]
[Result "1-0"]
[WhiteElo "2657"]
[BlackElo "2463"]
[TimeControl "180+1"]
[EndTime "10:39:42 PDT"]
[Termination "EvgenyRomanov won by resignation"]

1. d4 {[%clk 0:02:50.3]} 1... f5 {[%clk 0:02:59.2]} 2. g3 {[%clk 0:02:48.6]}
2... Nf6 {[%clk 0:02:59.2]} 3. Bg2 {[%clk 0:02:48.6]} 3... g6 {[%clk 0:02:59.7]}
4. c4 {[%clk 0:02:47.3]} 4... Bg7 {[%clk 0:03:00]} 5. Nc3 {[%clk 0:02:47.9]}
5... Nc6 {[%clk 0:02:52.7]} 6. Nh3 {[%clk 0:02:43.9]} 6... O-O {[%clk
0:02:49.6]} 7. O-O {[%clk 0:02:43.2]} 7... Qe8 {[%clk 0:02:40.9]} 8. d5 {[%clk
0:02:33.2]} 8... Ne5 {[%clk 0:02:39.8]} 9. b3 {[%clk 0:02:24.6]} 9... Nf7 {[%clk
0:02:34.1]} 10. Bb2 {[%clk 0:02:22.4]} 10... e5 {[%clk 0:02:33.2]} 11. dxe6
{[%clk 0:02:19.1]} 11... dxe6 {[%clk 0:02:33.4]} 12. Qc2 {[%clk 0:02:04]} 12...
c5 {[%clk 0:01:57.2]} 13. Nf4 {[%clk 0:01:56.6]} 13... Qe7 {[%clk 0:01:54.1]}
14. Rad1 {[%clk 0:01:54.4]} 14... g5 {[%clk 0:01:44.5]} 15. Nd3 {[%clk
0:01:54.2]} 15... h6 {[%clk 0:01:38.9]} 16. Na4 {[%clk 0:01:43.8]} 16... e5
{[%clk 0:01:03.3]} 17. Ndxc5 {[%clk 0:01:39.1]} 17... e4 {[%clk 0:01:03]} 18. b4
{[%clk 0:01:13.3]} 18... b6 {[%clk 0:00:59.5]} 19. Nb3 {[%clk 0:01:13.2]} 19...
Be6 {[%clk 0:00:53]} 20. c5 {[%clk 0:01:09.6]} 20... Rac8 {[%clk 0:00:52.3]} 21.
Nd4 {[%clk 0:01:06.3]} 21... Bd7 {[%clk 0:00:45]} 22. c6 {[%clk 0:00:59.1]}
22... b5 {[%clk 0:00:44.3]} 23. Nc5 {[%clk 0:00:57.7]} 23... Bxc6 {[%clk
0:00:42.5]} 24. Nxf5 {[%clk 0:00:57.2]} 24... Qe8 {[%clk 0:00:35.1]} 25. Nxg7
{[%clk 0:00:57]} 25... Kxg7 {[%clk 0:00:34.8]} 26. Qc3 {[%clk 0:00:57.6]} 26...
Qe7 {[%clk 0:00:33.2]} 27. f4 {[%clk 0:00:49.3]} 27... exf3 {[%clk 0:00:29.4]}
28. Bxf3 {[%clk 0:00:48.6]} 28... Rfe8 {[%clk 0:00:25.2]} 29. Bxc6 {[%clk
0:00:38.9]} 29... Rxc6 {[%clk 0:00:24.8]} 30. Rd7 {[%clk 0:00:30.3]} 30... Rxc5
{[%clk 0:00:17.3]} 31. Rxe7 {[%clk 0:00:28.2]} 31... Rxc3 {[%clk 0:00:15.2]} 32.
Bxc3 {[%clk 0:00:28.9]} 32... Rxe7 {[%clk 0:00:13.9]} 33. Bxf6+ {[%clk
0:00:28.7]} 33... Kf8 {[%clk 0:00:14.1]} 34. Bxe7+ {[%clk 0:00:29.6]} 34... Kxe7
{[%clk 0:00:14.4]} 35. Rf5 {[%clk 0:00:30.1]} 35... Nd6 {[%clk 0:00:13.6]} 36.
Rc5 {[%clk 0:00:30.1]} 36... a6 {[%clk 0:00:13.5]} 37. Kg2 {[%clk 0:00:30.1]}
37... Nc4 {[%clk 0:00:13.5]} 38. Rc6 {[%clk 0:00:28.6]} 38... Ne3+ {[%clk
0:00:11.5]} 39. Kf3 {[%clk 0:00:27.9]} 39... Nd5 {[%clk 0:00:12.1]} 40. a3
{[%clk 0:00:27.4]} 40... g4+ {[%clk 0:00:08.9]} 41. Kxg4 {[%clk 0:00:26.6]} 1-0

[Event "*** SCC Grand Prix: Titled Tuesday Blitz"]
[Site "Chess.com"]
[Date "2020.06.02"]
[Round "4"]
[White "KNVB"]
[Black "kingmonkey2006"]
[Result "0-1"]
[WhiteElo "2675"]
[BlackElo "2507"]
[TimeControl "180+1"]
[EndTime "10:39:43 PDT"]
[Termination "kingmonkey2006 won on time"]

1. e4 {[%clk 0:03:00.9]} 1... c5 {[%clk 0:02:59]} 2. b4 {[%clk 0:02:58.8]} 2...
b6 {[%clk 0:02:56.7]} 3. bxc5 {[%clk 0:02:52]} 3... bxc5 {[%clk 0:02:57.6]} 4.
Bc4 {[%clk 0:02:44.7]} 4... e6 {[%clk 0:02:54.1]} 5. Nc3 {[%clk 0:02:43.2]} 5...
Bb7 {[%clk 0:02:53.2]} 6. Rb1 {[%clk 0:02:43]} 6... Bc6 {[%clk 0:02:52]} 7. Qe2
{[%clk 0:02:35.8]} 7... Nf6 {[%clk 0:02:35.4]} 8. Nf3 {[%clk 0:02:32.2]} 8... d6
{[%clk 0:02:34.3]} 9. e5 {[%clk 0:02:26.1]} 9... Nfd7 {[%clk 0:02:17.9]} 10.
exd6 {[%clk 0:01:58.5]} 10... Bxd6 {[%clk 0:02:18.8]} 11. O-O {[%clk 0:01:32.2]}
11... O-O {[%clk 0:02:18.7]} 12. d3 {[%clk 0:01:30.6]} 12... Nb6 {[%clk
0:02:16.6]} 13. Bb3 {[%clk 0:01:07.6]} 13... N8d7 {[%clk 0:02:09.4]} 14. Ne4
{[%clk 0:01:03.7]} 14... Be7 {[%clk 0:02:05.6]} 15. Bb2 {[%clk 0:00:52.5]} 15...
Nf6 {[%clk 0:01:58.7]} 16. Ne5 {[%clk 0:00:42.4]} 16... Bd5 {[%clk 0:01:56.2]}
17. Bxd5 {[%clk 0:00:36]} 17... Nbxd5 {[%clk 0:01:41.4]} 18. Nc6 {[%clk
0:00:32.4]} 18... Qc7 {[%clk 0:01:41.7]} 19. Nxe7+ {[%clk 0:00:31.5]} 19... Qxe7
{[%clk 0:01:42.6]} 20. Be5 {[%clk 0:00:28.1]} 20... Nxe4 {[%clk 0:01:36.4]} 21.
dxe4 {[%clk 0:00:29]} 21... Nb4 {[%clk 0:01:36.8]} 22. c3 {[%clk 0:00:20.9]}
22... Nc6 {[%clk 0:01:36.4]} 23. Bf4 {[%clk 0:00:21.3]} 23... Rfd8 {[%clk
0:01:29.7]} 24. h3 {[%clk 0:00:20.6]} 24... h6 {[%clk 0:01:29.3]} 25. Qc4 {[%clk
0:00:19.4]} 25... Rac8 {[%clk 0:01:27.7]} 26. Rb5 {[%clk 0:00:18.2]} 26... Qf6
{[%clk 0:00:55.2]} 27. Bg3 {[%clk 0:00:13.4]} 27... Ne5 {[%clk 0:00:53]} 28.
Bxe5 {[%clk 0:00:10.9]} 28... Qxe5 {[%clk 0:00:53.9]} 29. Ra5 {[%clk 0:00:11.1]}
29... Rc7 {[%clk 0:00:49.6]} 30. f4 {[%clk 0:00:10.5]} 30... Qd6 {[%clk
0:00:48.8]} 31. Kh2 {[%clk 0:00:07.8]} 31... Rb8 {[%clk 0:00:45.4]} 32. Rf2
{[%clk 0:00:06.6]} 32... Rb1 {[%clk 0:00:45.1]} 33. e5 {[%clk 0:00:06.2]} 33...
Qd1 {[%clk 0:00:44.8]} 34. Rxc5 {[%clk 0:00:05.5]} 34... Qg1+ {[%clk 0:00:43.3]}
35. Kg3 {[%clk 0:00:05.6]} 35... Rb2 {[%clk 0:00:23.9]} 36. Rxb2 {[%clk
0:00:01.6]} 36... Rxc5 {[%clk 0:00:24.4]} 37. Qe4 {[%clk 0:00:01.1]} 37... Rxc3+
{[%clk 0:00:23.5]} 38. Kg4 {[%clk 0:00:01.3]} 38... g6 {[%clk 0:00:23.9]} 0-1

[Event "*** SCC Grand Prix: Titled Tuesday Blitz"]
[Site "Chess.com"]
[Date "2020.06.02"]
[Round "4"]
[White "JiaHaoxiang"]
[Black "latixxa"]
[Result "1-0"]
[WhiteElo "2565"]
[BlackElo "2157"]
[TimeControl "180+1"]
[EndTime "10:39:43 PDT"]
[Termination "JiaHaoxiang won by resignation"]

1. Nf3 {[%clk 0:03:00.9]} 1... d5 {[%clk 0:02:59.1]} 2. d4 {[%clk 0:02:59.9]}
2... Nf6 {[%clk 0:02:57.9]} 3. c4 {[%clk 0:02:59.8]} 3... e6 {[%clk 0:02:57.1]}
4. g3 {[%clk 0:02:59.8]} 4... dxc4 {[%clk 0:02:56.2]} 5. Bg2 {[%clk 0:02:59.2]}
5... c5 {[%clk 0:02:55.7]} 6. O-O {[%clk 0:02:58]} 6... Nc6 {[%clk 0:02:55.6]}
7. dxc5 {[%clk 0:02:58]} 7... Qxd1 {[%clk 0:02:55.3]} 8. Rxd1 {[%clk 0:02:58.9]}
8... Bxc5 {[%clk 0:02:55.3]} 9. Nbd2 {[%clk 0:02:59.3]} 9... c3 {[%clk
0:02:55.1]} 10. bxc3 {[%clk 0:03:00]} 10... O-O {[%clk 0:02:54.4]} 11. Nb3
{[%clk 0:03:00]} 11... Be7 {[%clk 0:02:54.2]} 12. c4 {[%clk 0:03:00.3]} 12...
Bd7 {[%clk 0:02:50.3]} 13. Nfd4 {[%clk 0:02:55.8]} 13... Nxd4 {[%clk 0:02:44.6]}
14. Nxd4 {[%clk 0:02:55.5]} 14... e5 {[%clk 0:02:30.8]} 15. Nb5 {[%clk 0:02:46]}
15... Bc6 {[%clk 0:02:29.5]} 16. Bxc6 {[%clk 0:02:29.7]} 16... bxc6 {[%clk
0:02:30.4]} 17. Nd6 {[%clk 0:02:26.1]} 17... Rad8 {[%clk 0:02:23.4]} 18. Ba3
{[%clk 0:02:15.9]} 18... Bxd6 {[%clk 0:02:15.9]} 19. Bxd6 {[%clk 0:02:14.7]}
19... Rfe8 {[%clk 0:02:15.6]} 20. c5 {[%clk 0:02:12.9]} 20... Rd7 {[%clk
0:02:14.7]} 21. f3 {[%clk 0:02:10.1]} 21... e4 {[%clk 0:02:12.3]} 22. f4 {[%clk
0:02:09.9]} 22... Nd5 {[%clk 0:02:08.6]} 23. Rd4 {[%clk 0:02:07.4]} 23... f5
{[%clk 0:02:05.8]} 24. Kf2 {[%clk 0:02:07.4]} 24... Kf7 {[%clk 0:02:00]} 25. Rb1
{[%clk 0:02:07]} 25... Red8 {[%clk 0:01:58.1]} 26. Rb3 {[%clk 0:02:05.7]} 26...
Nf6 {[%clk 0:01:53.8]} 27. Ra4 {[%clk 0:01:58]} 27... Ng4+ {[%clk 0:01:49.3]}
28. Kg2 {[%clk 0:01:56.8]} 28... Ke6 {[%clk 0:01:47.4]} 29. Rba3 {[%clk
0:01:47.4]} 29... Ra8 {[%clk 0:01:47]} 30. Ra6 {[%clk 0:01:29]} 30... Kd5 {[%clk
0:01:41.8]} 31. h3 {[%clk 0:01:28.2]} 31... Nf6 {[%clk 0:01:39.7]} 32. R3a4
{[%clk 0:01:27.9]} 32... Ne8 {[%clk 0:00:28]} 33. e3 {[%clk 0:01:26.7]} 33...
Nxd6 {[%clk 0:00:22.3]} 34. cxd6 {[%clk 0:01:27]} 34... Kxd6 {[%clk 0:00:21.6]}
35. Rc4 {[%clk 0:01:18.4]} 35... Rc7 {[%clk 0:00:20.9]} 36. Rd4+ {[%clk
0:01:16.3]} 36... Ke6 {[%clk 0:00:20.5]} 37. Rc4 {[%clk 0:01:16.8]} 37... Rac8
{[%clk 0:00:16.5]} 38. Rc5 {[%clk 0:01:16.3]} 38... Kd6 {[%clk 0:00:16]} 39.
Rxf5 {[%clk 0:01:16.2]} 39... Re7 {[%clk 0:00:15.1]} 40. Rfa5 {[%clk 0:01:14.4]}
40... Rcc7 {[%clk 0:00:15.2]} 41. Ra4 {[%clk 0:01:14]} 41... Kd7 {[%clk
0:00:14.7]} 42. Rc4 {[%clk 0:01:13.1]} 42... Re6 {[%clk 0:00:11.6]} 43. Raa4
{[%clk 0:01:12.6]} 43... Kc8 {[%clk 0:00:11.3]} 44. Rxe4 {[%clk 0:01:12.8]}
44... Rd6 {[%clk 0:00:11.5]} 45. Red4 {[%clk 0:01:12.9]} 45... Re6 {[%clk
0:00:10.8]} 46. Kf3 {[%clk 0:01:12.8]} 46... c5 {[%clk 0:00:10.9]} 47. Rdc4
{[%clk 0:01:12.9]} 47... Rb6 {[%clk 0:00:11.2]} 48. Ra5 {[%clk 0:01:12.5]} 48...
Rbc6 {[%clk 0:00:10.4]} 49. e4 {[%clk 0:01:12.4]} 49... Kb7 {[%clk 0:00:10.7]}
50. e5 {[%clk 0:01:12.7]} 50... Kb6 {[%clk 0:00:10.8]} 51. Ra3 {[%clk
0:01:11.7]} 51... g6 {[%clk 0:00:11]} 52. Re4 {[%clk 0:01:10.8]} 52... c4 {[%clk
0:00:10.6]} 53. Rc3 {[%clk 0:01:10.7]} 53... Kc5 {[%clk 0:00:10.2]} 54. Ke3
{[%clk 0:01:09]} 54... Kb5 {[%clk 0:00:09.6]} 55. a3 {[%clk 0:01:08.9]} 55... a5
{[%clk 0:00:09.3]} 56. g4 {[%clk 0:01:08]} 56... Ka4 {[%clk 0:00:07.2]} 57. f5
{[%clk 0:01:06.6]} 57... gxf5 {[%clk 0:00:08.1]} 58. gxf5 {[%clk 0:01:07.4]}
58... Kb5 {[%clk 0:00:08.5]} 59. e6 {[%clk 0:01:07.2]} 59... Re7 {[%clk
0:00:08.8]} 60. Kf4 {[%clk 0:01:06.6]} 60... Rc5 {[%clk 0:00:08.7]} 61. Re5
{[%clk 0:01:04.8]} 1-0

[Event "*** SCC Grand Prix: Titled Tuesday Blitz"]
[Site "Chess.com"]
[Date "2020.06.02"]
[Round "4"]
[White "kingnb"]
[Black "avantage_ru"]
[Result "1-0"]
[WhiteElo "2551"]
[BlackElo "2718"]
[TimeControl "180+1"]
[EndTime "10:39:44 PDT"]
[Termination "kingnb won by resignation"]

1. e4 {[%clk 0:03:00.9]} 1... Nf6 {[%clk 0:02:58.8]} 2. Nc3 {[%clk 0:02:59.1]}
2... c6 {[%clk 0:02:57.7]} 3. Nf3 {[%clk 0:02:52.8]} 3... d6 {[%clk 0:02:57.2]}
4. d4 {[%clk 0:02:52.5]} 4... Bg4 {[%clk 0:02:56.9]} 5. h3 {[%clk 0:02:51.6]}
5... Bh5 {[%clk 0:02:56.9]} 6. Bc4 {[%clk 0:02:50.1]} 6... e6 {[%clk 0:02:53.3]}
7. O-O {[%clk 0:02:48.5]} 7... d5 {[%clk 0:02:50.3]} 8. exd5 {[%clk 0:02:48.5]}
8... cxd5 {[%clk 0:02:50.5]} 9. Bb5+ {[%clk 0:02:48.6]} 9... Nc6 {[%clk
0:02:50.4]} 10. Bg5 {[%clk 0:02:37.8]} 10... Be7 {[%clk 0:02:46.7]} 11. Qd3
{[%clk 0:02:35.8]} 11... O-O {[%clk 0:02:43.4]} 12. Ne5 {[%clk 0:02:35.8]} 12...
Nxe5 {[%clk 0:02:35.4]} 13. dxe5 {[%clk 0:02:36.7]} 13... Bg6 {[%clk 0:02:33.9]}
14. Qd1 {[%clk 0:01:43.8]} 14... Nd7 {[%clk 0:02:26.3]} 15. Bxe7 {[%clk
0:01:43.5]} 15... Qxe7 {[%clk 0:02:26.3]} 16. f4 {[%clk 0:01:44.1]} 16... Rac8
{[%clk 0:02:19.3]} 17. Kh1 {[%clk 0:01:42.8]} 17... Nb6 {[%clk 0:02:16.5]} 18.
Qd4 {[%clk 0:01:38.7]} 18... Bxc2 {[%clk 0:02:12.5]} 19. Rac1 {[%clk 0:01:35.3]}
19... Bg6 {[%clk 0:02:11.5]} 20. g4 {[%clk 0:01:17.8]} 20... Qh4 {[%clk
0:02:10.4]} 21. Kh2 {[%clk 0:01:11.9]} 21... h5 {[%clk 0:02:03.7]} 22. Qf2
{[%clk 0:01:00.7]} 22... Qxf2+ {[%clk 0:02:01.2]} 23. Rxf2 {[%clk 0:01:01.6]}
23... hxg4 {[%clk 0:01:58.4]} 24. hxg4 {[%clk 0:00:58.6]} 24... a6 {[%clk
0:01:56.8]} 25. Bf1 {[%clk 0:00:51.8]} 25... d4 {[%clk 0:01:54.4]} 26. Ne2
{[%clk 0:00:49.6]} 26... Rxc1 {[%clk 0:01:54.1]} 27. Nxc1 {[%clk 0:00:50.5]}
27... f6 {[%clk 0:01:53.4]} 28. exf6 {[%clk 0:00:45.1]} 28... Rxf6 {[%clk
0:01:51.8]} 29. Kg3 {[%clk 0:00:40.6]} 29... Nd5 {[%clk 0:01:43.4]} 30. Nb3
{[%clk 0:00:33.4]} 30... d3 {[%clk 0:01:38.1]} 31. Nc5 {[%clk 0:00:19.3]} 31...
d2 {[%clk 0:01:22.9]} 32. Rxd2 {[%clk 0:00:18.9]} 32... Nxf4 {[%clk 0:01:23.1]}
33. Bc4 {[%clk 0:00:17.7]} 33... b5 {[%clk 0:01:18.4]} 34. Bb3 {[%clk
0:00:17.5]} 34... a5 {[%clk 0:01:14.1]} 35. Nd7 {[%clk 0:00:16.6]} 35... Rf7
{[%clk 0:01:09.7]} 36. Ne5 {[%clk 0:00:16.9]} 36... Rf6 {[%clk 0:01:05]} 37. g5
{[%clk 0:00:12.8]} 37... Nh5+ {[%clk 0:00:58.6]} 38. Kh2 {[%clk 0:00:12.7]}
38... Rf1 {[%clk 0:00:38.9]} 39. Nxg6 {[%clk 0:00:11.9]} 39... Re1 {[%clk
0:00:38.8]} 40. Nh4 {[%clk 0:00:10]} 40... a4 {[%clk 0:00:35.7]} 41. Bc2 {[%clk
0:00:10.3]} 41... Kf7 {[%clk 0:00:35.7]} 42. Bg6+ {[%clk 0:00:09.9]} 42... Ke7
{[%clk 0:00:35.8]} 43. Bxh5 {[%clk 0:00:10.8]} 1-0

[Event "*** SCC Grand Prix: Titled Tuesday Blitz"]
[Site "Chess.com"]
[Date "2020.06.02"]
[Round "4"]
[White "bmt011"]
[Black "mikerahal"]
[Result "1-0"]
[WhiteElo "2079"]
[BlackElo "2278"]
[TimeControl "180+1"]
[EndTime "10:39:45 PDT"]
[Termination "bmt011 won on time"]

1. d4 {[%clk 0:03:00.9]} 1... Nf6 {[%clk 0:02:58.7]} 2. Bf4 {[%clk 0:02:57.4]}
2... g6 {[%clk 0:02:55.6]} 3. e3 {[%clk 0:02:57.7]} 3... d6 {[%clk 0:02:49]} 4.
h3 {[%clk 0:02:58]} 4... Bg7 {[%clk 0:02:48.4]} 5. Nf3 {[%clk 0:02:57.9]} 5...
O-O {[%clk 0:02:47]} 6. Be2 {[%clk 0:02:58.4]} 6... c5 {[%clk 0:02:47.5]} 7. c3
{[%clk 0:02:51.2]} 7... b6 {[%clk 0:02:33.6]} 8. a4 {[%clk 0:02:49.7]} 8... a6
{[%clk 0:02:30.2]} 9. Nbd2 {[%clk 0:02:46.1]} 9... Bb7 {[%clk 0:02:30.1]} 10.
O-O {[%clk 0:02:46.6]} 10... Nbd7 {[%clk 0:02:29.7]} 11. Qb3 {[%clk 0:02:47]}
11... Qc7 {[%clk 0:02:12.9]} 12. Qa3 {[%clk 0:02:41.9]} 12... e5 {[%clk
0:02:05.8]} 13. dxe5 {[%clk 0:02:40.9]} 13... dxe5 {[%clk 0:02:06.7]} 14. Bh2
{[%clk 0:02:41.3]} 14... Rfe8 {[%clk 0:02:00.1]} 15. b4 {[%clk 0:02:33.4]} 15...
Rad8 {[%clk 0:01:46.9]} 16. a5 {[%clk 0:02:19.8]} 16... b5 {[%clk 0:01:42.9]}
17. c4 {[%clk 0:02:05.7]} 17... cxb4 {[%clk 0:01:26.9]} 18. Qxb4 {[%clk
0:02:04.2]} 18... Bf8 {[%clk 0:01:27.5]} 19. Qb2 {[%clk 0:02:04.6]} 19... b4
{[%clk 0:01:23.3]} 20. c5 {[%clk 0:02:00.3]} 20... Qxc5 {[%clk 0:01:16.5]} 21.
Rfc1 {[%clk 0:01:52.1]} 21... Qd6 {[%clk 0:01:04.7]} 22. Nc4 {[%clk 0:01:48]}
22... Qe7 {[%clk 0:01:01.8]} 23. Nfxe5 {[%clk 0:01:42.2]} 23... Nxe5 {[%clk
0:00:59.6]} 24. Nxe5 {[%clk 0:01:26.3]} 24... Bg7 {[%clk 0:00:54.3]} 25. Nc6
{[%clk 0:01:18.7]} 25... Bxc6 {[%clk 0:00:44.4]} 26. Rxc6 {[%clk 0:01:17.6]}
26... Ne4 {[%clk 0:00:43.8]} 27. Qa2 {[%clk 0:01:10.9]} 27... Nxf2 {[%clk
0:00:25.7]} 28. Rc7 {[%clk 0:00:53.2]} 28... Nxh3+ {[%clk 0:00:16.3]} 29. Kh1
{[%clk 0:00:45.2]} 29... Nf2+ {[%clk 0:00:15.8]} 30. Kg1 {[%clk 0:00:44.7]}
30... Qf6 {[%clk 0:00:11.5]} 31. Rf1 {[%clk 0:00:40.9]} 31... Rxe3 {[%clk
0:00:07.5]} 32. Rxf2 {[%clk 0:00:40.8]} 32... Qd4 {[%clk 0:00:06.8]} 33. Qxf7+
{[%clk 0:00:40.6]} 33... Kh8 {[%clk 0:00:06.2]} 34. Rc4 {[%clk 0:00:16.2]} 34...
Qd7 {[%clk 0:00:01.9]} 35. Rc7 {[%clk 0:00:13.4]} 35... Qxf7 {[%clk 0:00:01.5]}
36. Rfxf7 {[%clk 0:00:14]} 1-0